[Event "Titled Tuesday Blitz June 6 Late 2023"]
[White "Lopez Perdomo, Juan David"]
[Black "Miller, Ike S"]
[WhiteFideId "4405137"]
[BlackFideId "2022532"]
[WhiteElo "1965"]
[BlackElo "2126"]
[Result "1-0"]
[Round "6"]
[TimeControl "180+2"]
[Date "2023.06.07"]
[WhiteClock "0:00:20"]
[BlackClock "0:00:09"]
[Board "145"]

1. e4 {[%clk 0:02:58]}  c5 {[%clk 0:02:54]} 2. d4 {[%clk 0:02:59]}  cxd4 {[%clk 0:02:53]} 3. c3 {[%clk 0:02:59]}  dxc3 {[%clk 0:02:54]} 4. Nxc3 {[%clk 0:03:00]}  e6 {[%clk 0:02:55]} 5. Nf3 {[%clk 0:03:01]}  Nc6 {[%clk 0:02:55]} 6. Bc4 {[%clk 0:03:01]}  Bb4 {[%clk 0:02:55]} 7. O-O {[%clk 0:03:01]}  a6 {[%clk 0:02:49]} 8. Qe2 {[%clk 0:02:54]}  Nge7 {[%clk 0:02:39]} 9. Bg5 {[%clk 0:02:54]}  Bxc3 {[%clk 0:02:25]} 10. bxc3 {[%clk 0:02:54]}  O-O {[%clk 0:01:59]} 11. a4 {[%clk 0:02:52]}  f6 {[%clk 0:01:55]} 12. Bh4 {[%clk 0:02:51]}  Ng6 {[%clk 0:01:56]} 13. Bg3 {[%clk 0:02:50]}  Nge5 {[%clk 0:01:53]} 14. Ba2 {[%clk 0:02:44]}  Qe7 {[%clk 0:01:48]} 15. Bxe5 {[%clk 0:02:37]}  fxe5 {[%clk 0:01:47]} 16. Rfd1 {[%clk 0:02:34]}  d6 {[%clk 0:01:45]} 17. Qd2 {[%clk 0:02:33]}  Rd8 {[%clk 0:01:45]} 18. Rab1 {[%clk 0:02:31]}  Rb8 {[%clk 0:01:22]} 19. Rb6 {[%clk 0:02:13]}  Qc7 {[%clk 0:01:20]} 20. Rdb1 {[%clk 0:02:13]}  h6 {[%clk 0:01:06]} 21. h3 {[%clk 0:01:52]}  Ne7 {[%clk 0:01:00]} 22. a5 {[%clk 0:01:47]}  Kh7 {[%clk 0:00:54]} 23. Rd1 {[%clk 0:01:47]}  d5 {[%clk 0:00:55]} 24. Qe2 {[%clk 0:01:03]}  Bd7 {[%clk 0:00:28]} 25. exd5 {[%clk 0:00:50]}  Nxd5 {[%clk 0:00:27]} 26. Bxd5 {[%clk 0:00:50]}  exd5 {[%clk 0:00:27]} 27. Nxe5 {[%clk 0:00:49]}  Bf5 {[%clk 0:00:23]} 28. Qe3 {[%clk 0:00:32]}  Re8 {[%clk 0:00:17]} 29. f4 {[%clk 0:00:32]}  Be4 {[%clk 0:00:17]} 30. Kh2 {[%clk 0:00:32]}  Rbc8 {[%clk 0:00:17]} 31. c4 {[%clk 0:00:30]}  Qc5 {[%clk 0:00:15]} 32. Qxc5 {[%clk 0:00:27]}  Rxc5 {[%clk 0:00:16]} 33. Rxb7 {[%clk 0:00:20]}  dxc4 {[%clk 0:00:16]} 34. Ra7 {[%clk 0:00:20]}  c3 {[%clk 0:00:15]} 35. Nd7 {[%clk 0:00:20]}  c2 {[%clk 0:00:13]} 36. Rc1 {[%clk 0:00:20]}  Re7 {[%clk 0:00:11]} 37. Nxc5 {[%clk 0:00:20]}  Rxa7 {[%clk 0:00:11]} 38. Nxe4 {[%clk 0:00:20]}  Rc7 {[%clk 0:00:09]} 39. Kg3 {[%clk 0:00:20]} 1-0


[Site "https://www.chess.com"]

[Event "Titled Tuesday Blitz June 6 Late 2023"]
[White "el_sporco"]
[Black "Tarnowska, Aleksandra"]
[BlackFideId "1180967"]
[WhiteElo "2423"]
[BlackElo "1776"]
[Result "0-1"]
[Round "6"]
[TimeControl "180+2"]
[Date "2023.06.07"]
[WhiteClock "0:00:03"]
[BlackClock "0:00:04"]
[Board "146"]

1. e4 {[%clk 0:02:56]}  c5 {[%clk 0:02:59]} 2. Nf3 {[%clk 0:02:55]}  e6 {[%clk 0:02:59]} 3. c4 {[%clk 0:02:43]}  Qc7 {[%clk 0:02:44]} 4. Nc3 {[%clk 0:02:37]}  Nf6 {[%clk 0:02:32]} 5. d4 {[%clk 0:02:31]}  cxd4 {[%clk 0:02:21]} 6. Nxd4 {[%clk 0:02:32]}  Bb4 {[%clk 0:02:18]} 7. Bd3 {[%clk 0:02:30]}  Nc6 {[%clk 0:02:17]} 8. Nxc6 {[%clk 0:02:26]}  dxc6 {[%clk 0:02:16]} 9. O-O {[%clk 0:01:54]}  e5 {[%clk 0:02:16]} 10. Ne2 {[%clk 0:01:54]}  a5 {[%clk 0:02:07]} 11. Ng3 {[%clk 0:01:43]}  Bc5 {[%clk 0:01:56]} 12. h3 {[%clk 0:01:20]}  Be6 {[%clk 0:01:49]} 13. Qf3 {[%clk 0:01:16]}  h6 {[%clk 0:01:45]} 14. Nf5 {[%clk 0:01:15]}  Bxf5 {[%clk 0:01:27]} 15. Qxf5 {[%clk 0:01:16]}  a4 {[%clk 0:01:17]} 16. Kh1 {[%clk 0:01:09]}  Rd8 {[%clk 0:01:14]} 17. Bc2 {[%clk 0:01:05]}  b5 {[%clk 0:01:01]} 18. f4 {[%clk 0:01:02]}  Bd4 {[%clk 0:00:57]} 19. Rb1 {[%clk 0:00:42]}  O-O {[%clk 0:00:49]} 20. g4 {[%clk 0:00:33]}  Qd7 {[%clk 0:00:29]} 21. fxe5 {[%clk 0:00:20]}  Qxf5 {[%clk 0:00:23]} 22. Rxf5 {[%clk 0:00:21]}  Nd7 {[%clk 0:00:21]} 23. Bf4 {[%clk 0:00:19]}  Rfe8 {[%clk 0:00:17]} 24. cxb5 {[%clk 0:00:17]}  cxb5 {[%clk 0:00:17]} 25. e6 {[%clk 0:00:16]}  Rxe6 {[%clk 0:00:16]} 26. Rxb5 {[%clk 0:00:16]}  Nc5 {[%clk 0:00:11]} 27. Bc7 {[%clk 0:00:14]}  Rde8 {[%clk 0:00:09]} 28. Bb6 {[%clk 0:00:13]}  Re5 {[%clk 0:00:04]} 29. Bxc5 {[%clk 0:00:11]}  Bxc5 {[%clk 0:00:02]} 30. Re1 {[%clk 0:00:08]}  Bd4 {[%clk 0:00:02]} 31. Rxe5 {[%clk 0:00:08]}  Rxe5 {[%clk 0:00:03]} 32. Bxa4 {[%clk 0:00:08]}  Bxb2 {[%clk 0:00:03]} 33. Bc6 {[%clk 0:00:09]}  Bc3 {[%clk 0:00:03]} 34. Bd5 {[%clk 0:00:09]}  Bxe1 {[%clk 0:00:02]} 35. a4 {[%clk 0:00:09]}  Bb4 {[%clk 0:00:03]} 36. Kg2 {[%clk 0:00:09]}  g6 {[%clk 0:00:03]} 37. Kf3 {[%clk 0:00:09]}  Kf8 {[%clk 0:00:03]} 38. Ke3 {[%clk 0:00:10]}  Bc5+ {[%clk 0:00:03]} 39. Kd3 {[%clk 0:00:10]}  Ke7 {[%clk 0:00:03]} 40. Kc4 {[%clk 0:00:11]}  Kd6 {[%clk 0:00:04]} 41. Kb5 {[%clk 0:00:11]}  f5 {[%clk 0:00:03]} 42. exf5 {[%clk 0:00:07]}  gxf5 {[%clk 0:00:04]} 43. Bf3 {[%clk 0:00:06]}  Re3 {[%clk 0:00:02]} 44. Bd1 {[%clk 0:00:05]}  Rc3 {[%clk 0:00:02]} 45. gxf5 {[%clk 0:00:04]}  Rxh3 {[%clk 0:00:02]} 46. a5 {[%clk 0:00:04]}  Rd3 {[%clk 0:00:03]} 47. Bg4 {[%clk 0:00:03]}  Rb3+ {[%clk 0:00:02]} 48. Kc4 {[%clk 0:00:03]}  Rb4+ {[%clk 0:00:03]} 49. Kc3 {[%clk 0:00:03]}  Rxg4 {[%clk 0:00:04]} 50. a6 {[%clk 0:00:04]}  Ra4 {[%clk 0:00:04]} 51. f6 {[%clk 0:00:03]}  Rxa6 {[%clk 0:00:04]} 52. f7 {[%clk 0:00:03]}  Ke7 {[%clk 0:00:04]} 0-1


[Site "https://www.chess.com"]

[Event "Titled Tuesday Blitz June 6 Late 2023"]
[White "NtcPou"]
[Black "Manon-og, Ramon Jr."]
[BlackFideId "5200776"]
[WhiteElo "2045"]
[BlackElo "2326"]
[Result "0-1"]
[Round "6"]
[TimeControl "180+2"]
[Date "2023.06.07"]
[WhiteClock "0:00:23"]
[BlackClock "0:01:16"]
[Board "147"]

1. e4 {[%clk 0:03:00]}  c5 {[%clk 0:02:44]} 2. Nf3 {[%clk 0:02:53]}  d6 {[%clk 0:02:44]} 3. Bb5+ {[%clk 0:02:52]}  Nd7 {[%clk 0:02:43]} 4. a4 {[%clk 0:02:50]}  Nf6 {[%clk 0:02:42]} 5. Nc3 {[%clk 0:02:46]}  a6 {[%clk 0:02:42]} 6. Be2 {[%clk 0:02:42]}  e5 {[%clk 0:02:42]} 7. O-O {[%clk 0:02:41]}  Be7 {[%clk 0:02:41]} 8. a5 {[%clk 0:02:37]}  O-O {[%clk 0:02:40]} 9. d3 {[%clk 0:02:36]}  h6 {[%clk 0:02:40]} 10. h3 {[%clk 0:02:34]}  Re8 {[%clk 0:02:40]} 11. Bd2 {[%clk 0:02:31]}  Nf8 {[%clk 0:02:41]} 12. Na4 {[%clk 0:02:26]}  Ne6 {[%clk 0:02:35]} 13. Nb6 {[%clk 0:02:24]}  Rb8 {[%clk 0:02:35]} 14. c3 {[%clk 0:02:23]}  Bf8 {[%clk 0:02:32]} 15. Be3 {[%clk 0:02:19]}  Nd7 {[%clk 0:02:23]} 16. Nd5 {[%clk 0:02:16]}  Nf6 {[%clk 0:02:23]} 17. Nb6 {[%clk 0:01:59]}  Nd7 {[%clk 0:02:22]} 18. Nd5 {[%clk 0:01:58]}  Nc7 {[%clk 0:02:21]} 19. c4 {[%clk 0:01:50]}  Nxd5 {[%clk 0:02:11]} 20. cxd5 {[%clk 0:01:50]}  Nf6 {[%clk 0:02:10]} 21. Nd2 {[%clk 0:01:48]}  Nh7 {[%clk 0:02:04]} 22. Nc4 {[%clk 0:01:47]}  f5 {[%clk 0:02:03]} 23. f3 {[%clk 0:01:43]}  f4 {[%clk 0:02:01]} 24. Bf2 {[%clk 0:01:43]}  Qg5 {[%clk 0:01:58]} 25. Kh2 {[%clk 0:01:29]}  Nf6 {[%clk 0:01:58]} 26. Qb3 {[%clk 0:01:25]}  Nh5 {[%clk 0:01:56]} 27. Qb6 {[%clk 0:01:22]}  Ng3 {[%clk 0:01:54]} 28. Rfe1 {[%clk 0:01:21]}  Qg6 {[%clk 0:01:44]} 29. Bxc5 {[%clk 0:01:10]}  Nxe2 {[%clk 0:01:41]} 30. Rxe2 {[%clk 0:01:10]}  Qg3+ {[%clk 0:01:40]} 31. Kh1 {[%clk 0:01:09]}  dxc5 {[%clk 0:01:40]} 32. d6 {[%clk 0:00:59]}  Bxh3 {[%clk 0:01:26]} 33. Qxc5 {[%clk 0:00:37]}  Rbc8 {[%clk 0:01:20]} 34. Qd5+ {[%clk 0:00:37]}  Be6 {[%clk 0:01:19]} 35. Qxb7 {[%clk 0:00:37]}  Bxc4 {[%clk 0:01:18]} 36. dxc4 {[%clk 0:00:37]}  Bxd6 {[%clk 0:01:18]} 37. Qxa6 {[%clk 0:00:30]}  Bc5 {[%clk 0:01:18]} 38. Qb5 {[%clk 0:00:23]}  Qh4# {[%clk 0:01:16]} 0-1


[Site "https://www.chess.com"]

[Event "Titled Tuesday Blitz June 6 Late 2023"]
[White "Kovalev, Vladislav"]
[Black "Makarian, Rudik"]
[WhiteFideId "13504398"]
[BlackFideId "44105681"]
[WhiteElo "2555"]
[BlackElo "2451"]
[Result "1/2-1/2"]
[Round "7"]
[TimeControl "180+2"]
[Date "2023.06.07"]
[WhiteClock "0:00:04"]
[BlackClock "0:00:06"]
[Board "1"]

1. e4 {[%clk 0:03:00]}  c5 {[%clk 0:03:00]} 2. Nf3 {[%clk 0:03:00]}  Nc6 {[%clk 0:03:00]} 3. Bb5 {[%clk 0:03:00]}  e6 {[%clk 0:03:01]} 4. O-O {[%clk 0:03:00]}  Nd4 {[%clk 0:03:01]} 5. Nxd4 {[%clk 0:02:59]}  cxd4 {[%clk 0:03:02]} 6. c3 {[%clk 0:02:57]}  a6 {[%clk 0:03:03]} 7. Bd3 {[%clk 0:02:55]}  Bc5 {[%clk 0:03:03]} 8. b4 {[%clk 0:02:55]}  Ba7 {[%clk 0:03:02]} 9. Bb2 {[%clk 0:02:54]}  Ne7 {[%clk 0:03:00]} 10. Na3 {[%clk 0:02:31]}  d5 {[%clk 0:02:55]} 11. Nc2 {[%clk 0:02:15]}  O-O {[%clk 0:02:46]} 12. Nxd4 {[%clk 0:02:06]}  Bxd4 {[%clk 0:02:45]} 13. cxd4 {[%clk 0:02:06]}  Bd7 {[%clk 0:02:44]} 14. f3 {[%clk 0:01:44]}  Bb5 {[%clk 0:02:41]} 15. Qe2 {[%clk 0:01:39]}  Qd7 {[%clk 0:02:39]} 16. Rfc1 {[%clk 0:01:33]}  b6 {[%clk 0:02:25]} 17. Rc2 {[%clk 0:01:21]}  Rfc8 {[%clk 0:02:21]} 18. Rac1 {[%clk 0:01:20]}  Rxc2 {[%clk 0:02:18]} 19. Rxc2 {[%clk 0:01:21]}  Rc8 {[%clk 0:02:18]} 20. Rxc8+ {[%clk 0:01:18]}  Nxc8 {[%clk 0:02:19]} 21. e5 {[%clk 0:00:53]}  Qc6 {[%clk 0:02:05]} 22. Bxb5 {[%clk 0:00:52]}  axb5 {[%clk 0:02:03]} 23. Qd3 {[%clk 0:00:49]}  Ne7 {[%clk 0:02:00]} 24. Qc3 {[%clk 0:00:47]}  Qd7 {[%clk 0:01:53]} 25. d3 {[%clk 0:00:42]}  h6 {[%clk 0:01:53]} 26. Bc1 {[%clk 0:00:42]}  Kh7 {[%clk 0:01:53]} 27. g4 {[%clk 0:00:41]}  Ng6 {[%clk 0:01:42]} 28. Kf2 {[%clk 0:00:38]}  Qe7 {[%clk 0:01:19]} 29. Be3 {[%clk 0:00:28]}  f5 {[%clk 0:00:48]} 30. exf6 {[%clk 0:00:22]}  Qxf6 {[%clk 0:00:49]} 31. Qc7 {[%clk 0:00:21]}  Nh4 {[%clk 0:00:45]} 32. Qf4 {[%clk 0:00:19]}  Qe7 {[%clk 0:00:43]} 33. a3 {[%clk 0:00:19]}  Qa7 {[%clk 0:00:32]} 34. Qe5 {[%clk 0:00:14]}  Qxa3 {[%clk 0:00:29]} 35. Kg3 {[%clk 0:00:09]}  Ng6 {[%clk 0:00:25]} 36. Qxe6 {[%clk 0:00:09]}  Qxb4 {[%clk 0:00:20]} 37. Bf2 {[%clk 0:00:07]}  Qd2 {[%clk 0:00:18]} 38. Qf5 {[%clk 0:00:07]}  Qg5 {[%clk 0:00:12]} 39. Qxg5 {[%clk 0:00:05]}  hxg5 {[%clk 0:00:13]} 40. Be3 {[%clk 0:00:05]}  Kh6 {[%clk 0:00:08]} 41. Kf2 {[%clk 0:00:03]}  b4 {[%clk 0:00:07]} 42. Ke2 {[%clk 0:00:03]}  Nh4 {[%clk 0:00:03]} 43. f4 {[%clk 0:00:04]}  gxf4 {[%clk 0:00:02]} 44. Bxf4+ {[%clk 0:00:04]}  Kg6 {[%clk 0:00:03]} 45. Kd2 {[%clk 0:00:04]}  Nf3+ {[%clk 0:00:03]} 46. Ke3 {[%clk 0:00:05]}  Ne1 {[%clk 0:00:03]} 47. Kd2 {[%clk 0:00:04]}  Nf3+ {[%clk 0:00:03]} 48. Kc2 {[%clk 0:00:05]}  Nxd4+ {[%clk 0:00:03]} 49. Kb2 {[%clk 0:00:06]}  Ne6 {[%clk 0:00:04]} 50. Be3 {[%clk 0:00:05]}  Nc5 {[%clk 0:00:04]} 51. Kc2 {[%clk 0:00:03]}  Kf6 {[%clk 0:00:03]} 52. h4 {[%clk 0:00:03]}  g6 {[%clk 0:00:03]} 53. Bd4+ {[%clk 0:00:04]}  Kf7 {[%clk 0:00:04]} 54. h5 {[%clk 0:00:04]}  gxh5 {[%clk 0:00:04]} 55. gxh5 {[%clk 0:00:05]}  Kg8 {[%clk 0:00:05]} 56. Be3 {[%clk 0:00:04]}  Kh7 {[%clk 0:00:05]} 57. Bd2 {[%clk 0:00:05]}  Ne6 {[%clk 0:00:03]} 58. Bxb4 {[%clk 0:00:05]}  Kh6 {[%clk 0:00:04]} 59. Be7 {[%clk 0:00:04]}  Kxh5 {[%clk 0:00:04]} 60. Kc3 {[%clk 0:00:04]}  Kg4 {[%clk 0:00:04]} 61. Kb4 {[%clk 0:00:04]}  Kf3 {[%clk 0:00:04]} 62. Kb5 {[%clk 0:00:04]}  Ke3 {[%clk 0:00:05]} 63. Kxb6 {[%clk 0:00:05]}  Kxd3 {[%clk 0:00:05]} 64. Kc6 {[%clk 0:00:05]}  Kc4 {[%clk 0:00:06]} 65. Bf6 {[%clk 0:00:06]}  Nd4+ {[%clk 0:00:06]} 66. Kb7 {[%clk 0:00:05]}  Nb5 {[%clk 0:00:07]} 67. Bh8 {[%clk 0:00:05]}  Nc3 {[%clk 0:00:06]} 68. Kc6 {[%clk 0:00:05]}  Ne4 {[%clk 0:00:07]} 69. Bg7 {[%clk 0:00:05]}  Ng3 {[%clk 0:00:07]} 70. Bh8 {[%clk 0:00:06]}  Nf5 {[%clk 0:00:08]} 71. Ba1 {[%clk 0:00:05]}  Nd4+ {[%clk 0:00:08]} 72. Kd7 {[%clk 0:00:05]}  Kd3 {[%clk 0:00:07]} 73. Ke8 {[%clk 0:00:05]}  Nb5 {[%clk 0:00:07]} 74. Bh8 {[%clk 0:00:04]}  Ke4 {[%clk 0:00:07]} 75. Kf8 {[%clk 0:00:03]}  Nd4 {[%clk 0:00:08]} 76. Ke8 {[%clk 0:00:04]}  Nf3 {[%clk 0:00:08]} 77. Ba1 {[%clk 0:00:04]}  Kd3 {[%clk 0:00:07]} 78. Kf8 {[%clk 0:00:04]}  Nd4 {[%clk 0:00:07]} 79. Kg8 {[%clk 0:00:04]}  Ke4 {[%clk 0:00:07]} 80. Kh8 {[%clk 0:00:05]}  Ne2 {[%clk 0:00:06]} 81. Bb2 {[%clk 0:00:04]}  Nf4 {[%clk 0:00:07]} 82. Ba1 {[%clk 0:00:04]}  Nd3 {[%clk 0:00:07]} 83. Bc3 {[%clk 0:00:04]}  Nc5 {[%clk 0:00:06]} 84. Ba1 {[%clk 0:00:04]}  Kd3 {[%clk 0:00:07]} 85. Bg7 {[%clk 0:00:04]}  Nd7 {[%clk 0:00:06]} 86. Ba1 {[%clk 0:00:04]}  Nb6 {[%clk 0:00:06]} 87. Bb2 {[%clk 0:00:05]}  Na4 {[%clk 0:00:06]} 88. Bg7 {[%clk 0:00:05]}  Nc5 {[%clk 0:00:07]} 89. Ba1 {[%clk 0:00:05]}  Ke4 {[%clk 0:00:07]} 90. Bb2 {[%clk 0:00:05]}  Nd3 {[%clk 0:00:07]} 91. Ba1 {[%clk 0:00:05]}  Nf4 {[%clk 0:00:07]} 92. Bb2 {[%clk 0:00:05]}  Ng6+ {[%clk 0:00:08]} 93. Kg7 {[%clk 0:00:04]}  Ne5 {[%clk 0:00:08]} 94. Kh8 {[%clk 0:00:04]}  Nf3 {[%clk 0:00:07]} 95. Ba1 {[%clk 0:00:04]}  Kd3 {[%clk 0:00:07]} 96. Bb2 {[%clk 0:00:04]}  Nd2 {[%clk 0:00:07]} 97. Ba1 {[%clk 0:00:05]}  Nb3 {[%clk 0:00:06]} 98. Bb2 {[%clk 0:00:05]}  Nd4 {[%clk 0:00:06]} 99. Ba1 {[%clk 0:00:05]}  Kc4 {[%clk 0:00:06]} 100. Bb2 {[%clk 0:00:05]}  Ne2 {[%clk 0:00:06]} 101. Bg7 {[%clk 0:00:06]}  Nc3 {[%clk 0:00:06]} 102. Bf6 {[%clk 0:00:05]}  Kd3 {[%clk 0:00:06]} 103. Bg7 {[%clk 0:00:06]}  Ke4 {[%clk 0:00:07]} 104. Bf6 {[%clk 0:00:06]}  Ne2 {[%clk 0:00:07]} 105. Bg7 {[%clk 0:00:06]}  Nf4 {[%clk 0:00:07]} 106. Ba1 {[%clk 0:00:06]}  Nd3 {[%clk 0:00:07]} 107. Bc3 {[%clk 0:00:06]}  Nf2 {[%clk 0:00:07]} 108. Ba1 {[%clk 0:00:06]}  Nd1 {[%clk 0:00:08]} 109. Kg7 {[%clk 0:00:05]}  Kd3 {[%clk 0:00:08]} 110. Bf6 {[%clk 0:00:05]}  Nc3 {[%clk 0:00:08]} 111. Kh8 {[%clk 0:00:05]}  Kc4 {[%clk 0:00:06]} 112. Bg7 {[%clk 0:00:05]}  Ne4 {[%clk 0:00:07]} 113. Kg8 {[%clk 0:00:04]}  Nd6 {[%clk 0:00:06]} 1/2-1/2


[Site "https://www.chess.com"]

[Event "Titled Tuesday Blitz June 6 Late 2023"]
[White "Deac, Bogdan-Daniel"]
[Black "Nepomniachtchi, Ian"]
[WhiteFideId "1226380"]
[BlackFideId "4168119"]
[WhiteElo "2644"]
[BlackElo "2781"]
[Result "1-0"]
[Round "7"]
[TimeControl "180+2"]
[Date "2023.06.07"]
[WhiteClock "0:00:06"]
[BlackClock "0:00:05"]
[Board "2"]

1. d4 {[%clk 0:02:38]}  f5 {[%clk 0:02:59]} 2. g3 {[%clk 0:02:37]}  Nf6 {[%clk 0:02:59]} 3. Bg2 {[%clk 0:02:37]}  g6 {[%clk 0:03:00]} 4. Nd2 {[%clk 0:02:37]}  Nc6 {[%clk 0:02:56]} 5. d5 {[%clk 0:02:35]}  Ne5 {[%clk 0:02:55]} 6. Nh3 {[%clk 0:02:36]}  Bg7 {[%clk 0:02:55]} 7. Nf4 {[%clk 0:02:36]}  O-O {[%clk 0:02:54]} 8. h4 {[%clk 0:02:35]}  c6 {[%clk 0:02:54]} 9. c4 {[%clk 0:02:24]}  Qb6 {[%clk 0:02:50]} 10. O-O {[%clk 0:02:23]}  Nfg4 {[%clk 0:02:36]} 11. e3 {[%clk 0:02:08]}  d6 {[%clk 0:02:33]} 12. Rb1 {[%clk 0:02:02]}  Nxe3 {[%clk 0:01:50]} 13. fxe3 {[%clk 0:02:01]}  Qxe3+ {[%clk 0:01:51]} 14. Kh2 {[%clk 0:02:01]}  Ng4+ {[%clk 0:01:51]} 15. Kh3 {[%clk 0:02:01]}  Nf2+ {[%clk 0:01:22]} 16. Rxf2 {[%clk 0:02:00]}  Qxf2 {[%clk 0:01:23]} 17. Nf3 {[%clk 0:02:01]}  Be5 {[%clk 0:01:20]} 18. Qd3 {[%clk 0:01:43]}  Qb6 {[%clk 0:01:04]} 19. Be3 {[%clk 0:01:40]}  Qc7 {[%clk 0:01:04]} 20. Re1 {[%clk 0:01:24]}  Bxb2 {[%clk 0:01:03]} 21. Bd4 {[%clk 0:01:20]}  Bxd4 {[%clk 0:01:01]} 22. Nxd4 {[%clk 0:01:21]}  Rf6 {[%clk 0:01:00]} 23. dxc6 {[%clk 0:01:12]}  e5 {[%clk 0:00:30]} 24. Nd5 {[%clk 0:01:05]}  f4+ {[%clk 0:00:31]} 25. Kh2 {[%clk 0:01:04]}  Qf7 {[%clk 0:00:22]} 26. Nxf6+ {[%clk 0:00:57]}  Qxf6 {[%clk 0:00:23]} 27. cxb7 {[%clk 0:00:56]}  Bxb7 {[%clk 0:00:23]} 28. Bxb7 {[%clk 0:00:57]}  Rb8 {[%clk 0:00:24]} 29. Bd5+ {[%clk 0:00:50]}  Kh8 {[%clk 0:00:25]} 30. Nb3 {[%clk 0:00:50]}  a5 {[%clk 0:00:23]} 31. Re2 {[%clk 0:00:32]}  a4 {[%clk 0:00:16]} 32. Nd2 {[%clk 0:00:33]}  Rb2 {[%clk 0:00:13]} 33. Ne4 {[%clk 0:00:26]}  fxg3+ {[%clk 0:00:14]} 34. Nxg3 {[%clk 0:00:17]}  a3 {[%clk 0:00:14]} 35. Kg2 {[%clk 0:00:14]}  Qxh4 {[%clk 0:00:12]} 36. Qf3 {[%clk 0:00:09]}  Qf4 {[%clk 0:00:08]} 37. Rf2 {[%clk 0:00:04]}  Kg7 {[%clk 0:00:03]} 38. Qxf4 {[%clk 0:00:03]}  exf4 {[%clk 0:00:04]} 39. Ne4 {[%clk 0:00:04]}  h6 {[%clk 0:00:03]} 40. Nxd6 {[%clk 0:00:03]}  Kf6 {[%clk 0:00:04]} 41. c5 {[%clk 0:00:03]}  Ke5 {[%clk 0:00:04]} 42. Nc4+ {[%clk 0:00:03]}  Kxd5 {[%clk 0:00:05]} 43. Nxb2 {[%clk 0:00:04]}  axb2 {[%clk 0:00:05]} 44. Rxb2 {[%clk 0:00:04]}  g5 {[%clk 0:00:05]} 45. a4 {[%clk 0:00:05]}  g4 {[%clk 0:00:05]} 46. a5 {[%clk 0:00:06]} 1-0


[Site "https://www.chess.com"]

[Event "Titled Tuesday Blitz June 6 Late 2023"]
[White "Keymer, Vincent"]
[Black "Duda, Jan-Krzysztof"]
[WhiteFideId "12940690"]
[BlackFideId "1170546"]
[WhiteElo "2669"]
[BlackElo "2783"]
[Result "0-1"]
[Round "7"]
[TimeControl "180+2"]
[Date "2023.06.07"]
[WhiteClock "0:00:11"]
[BlackClock "0:00:07"]
[Board "3"]

1. Nf3 {[%clk 0:03:00]}  d5 {[%clk 0:02:57]} 2. e3 {[%clk 0:03:00]}  Nf6 {[%clk 0:02:57]} 3. c4 {[%clk 0:03:01]}  c6 {[%clk 0:02:55]} 4. Nc3 {[%clk 0:03:01]}  e6 {[%clk 0:02:54]} 5. b3 {[%clk 0:03:01]}  Nbd7 {[%clk 0:02:54]} 6. Qc2 {[%clk 0:03:00]}  Bd6 {[%clk 0:02:51]} 7. Bb2 {[%clk 0:03:01]}  O-O {[%clk 0:02:50]} 8. Be2 {[%clk 0:03:01]}  Qe7 {[%clk 0:02:42]} 9. O-O {[%clk 0:02:56]}  e5 {[%clk 0:02:42]} 10. cxd5 {[%clk 0:02:56]}  Nxd5 {[%clk 0:02:43]} 11. Ne4 {[%clk 0:02:53]}  Bc7 {[%clk 0:02:42]} 12. Ng3 {[%clk 0:02:51]}  N7f6 {[%clk 0:02:37]} 13. a3 {[%clk 0:02:37]}  a5 {[%clk 0:02:37]} 14. d4 {[%clk 0:01:57]}  exd4 {[%clk 0:01:50]} 15. Nxd4 {[%clk 0:01:58]}  g6 {[%clk 0:01:40]} 16. Nf3 {[%clk 0:01:54]}  Re8 {[%clk 0:01:39]} 17. Bc4 {[%clk 0:01:46]}  Bg4 {[%clk 0:01:36]} 18. Rae1 {[%clk 0:00:51]}  Rad8 {[%clk 0:01:35]} 19. e4 {[%clk 0:00:37]}  Nf4 {[%clk 0:01:12]} 20. Ng5 {[%clk 0:00:37]}  Ne6 {[%clk 0:00:41]} 21. Bxe6 {[%clk 0:00:32]}  Bxe6 {[%clk 0:00:42]} 22. Qc3 {[%clk 0:00:32]}  Kg7 {[%clk 0:00:30]} 23. Nf5+ {[%clk 0:00:26]}  gxf5 {[%clk 0:00:27]} 24. exf5 {[%clk 0:00:26]}  Bxh2+ {[%clk 0:00:20]} 25. Kxh2 {[%clk 0:00:24]}  Qd6+ {[%clk 0:00:21]} 26. Kg1 {[%clk 0:00:08]}  Bxf5 {[%clk 0:00:21]} 27. Qf3 {[%clk 0:00:07]}  Bg6 {[%clk 0:00:10]} 28. Rd1 {[%clk 0:00:08]}  Qe7 {[%clk 0:00:10]} 29. Rde1 {[%clk 0:00:08]}  Qd6 {[%clk 0:00:10]} 30. Re3 {[%clk 0:00:04]}  h6 {[%clk 0:00:09]} 31. Nh3 {[%clk 0:00:03]}  c5 {[%clk 0:00:04]} 32. Nf4 {[%clk 0:00:03]}  Qc6 {[%clk 0:00:03]} 33. Qg3 {[%clk 0:00:02]}  Kh7 {[%clk 0:00:03]} 34. Qh4 {[%clk 0:00:02]}  Ng8 {[%clk 0:00:03]} 35. Rg3 {[%clk 0:00:02]}  Rd2 {[%clk 0:00:02]} 36. Nh5 {[%clk 0:00:02]}  Rxb2 {[%clk 0:00:01]} 37. Nf4 {[%clk 0:00:01]}  Rd2 {[%clk 0:00:01]} 38. Rh3 {[%clk 0:00:01]}  Rd4 {[%clk 0:00:01]} 39. Qg3 {[%clk 0:00:02]}  Qd6 {[%clk 0:00:01]} 40. Nh5 {[%clk 0:00:03]}  Qxg3 {[%clk 0:00:01]} 41. Nxg3 {[%clk 0:00:03]}  Rd3 {[%clk 0:00:01]} 42. Rh2 {[%clk 0:00:04]}  Rxb3 {[%clk 0:00:01]} 43. f3 {[%clk 0:00:05]}  Rxa3 {[%clk 0:00:02]} 44. f4 {[%clk 0:00:06]}  c4 {[%clk 0:00:02]} 45. f5 {[%clk 0:00:07]}  c3 {[%clk 0:00:03]} 46. fxg6+ {[%clk 0:00:08]}  fxg6 {[%clk 0:00:03]} 47. Rf7+ {[%clk 0:00:08]}  Kh8 {[%clk 0:00:04]} 48. Rc7 {[%clk 0:00:08]}  c2 {[%clk 0:00:05]} 49. Nf1 {[%clk 0:00:09]}  Ra2 {[%clk 0:00:05]} 50. Rc3 {[%clk 0:00:09]}  b5 {[%clk 0:00:05]} 51. Rhh3 {[%clk 0:00:10]}  b4 {[%clk 0:00:05]} 52. Rc7 {[%clk 0:00:10]}  a4 {[%clk 0:00:06]} 53. Rf3 {[%clk 0:00:11]}  b3 {[%clk 0:00:06]} 54. Rff7 {[%clk 0:00:11]}  Re7 {[%clk 0:00:07]} 0-1


[Site "https://www.chess.com"]